[Event "African Individual Chess-ch Open 2024"]
[Site "Accra"]
[Date "2024.03.20"]
[Round "9.3"]
[White "Rakotomaharo, Fy Antenaina"]
[Black "Mwali, Chitumbo"]
[Result "0-1"]
[ECO "A30"]
[WhiteElo "2454"]
[BlackElo "2340"]
[Annotator "TA"]
[PlyCount "174"]
[EventDate "2024.03.13"]
[EventCountry "GHA"]
[SourceTitle "playchess.com"]
[Source "ChessBase"]
[SourceQuality "1"]
[TimeControl "5400+30"]

{[%evp 58,174,-135,-276,-217,-216,-213,-223,-217,-220,-180,-195,-182,-174,-166,-142,-159,-179,-181,-174,-183,-179,-182,-182,-189,-480,-451,-491,-445,-560,-440,-713,-578,-758,-764,-1311,-764,-29959,-29966,-29963,-29966,-29967,-29968,-29968,-29969,-29965,-29968,-6916,-5652,-29971,-29972,-29972,-29973,-29972,-29974,-29974,-29975,-29975,-29976,-29975,-29977,-29977,-29978,-29978,-29979,-29979,-29980,-29979,-29980,-29982,-29983,-29983,-29983,-29983,-29984,-29985,-29984,-29987,-29986,-29986,-29987,-29988,-29986,-29986,-29987,-29987,-29985,-29985,-29983,-29984,0,-29985,0,-29987,-29988,-29988,-29989,-29989,-29989,-29990,-29991,-29991,-29992,-29995,-29988,-29988,-29989,-29989,-29990,-29990,-29991,-29991,-29991,-29991,-29991,-29993,-29992,-29992,-29985]} 1. Nf3 {[%emt 0:00:25]} Nf6 {[%emt 0:00:12]} 2. c4 {[%emt 0:00:06]} c5 {[%emt 0:01:38]} 3. Nc3 {[%emt 0:00:13]} e6 {[%emt 0:02:21]} 4. g3 {[%emt 0:00:38]} b6 {[%emt 0:00:32]} 5. Bg2 {[%emt 0:00:10]} Bb7 {[%emt 0:00:25]} 6. O-O {[%emt 0:00:07]} a6 {[%emt 0:03:17]} 7. Re1 {[%emt 0:02:52]} Be7 {[%emt 0:00:26]} 8. e4 {[%emt 0:01:58]} d6 {[%emt 0:00:04]} 9. d4 {[%emt 0:00:08]} cxd4 {[%emt 0:00:04]} 10. Nxd4 {[%emt 0:00:04]} Qc7 {[%emt 0:00:01]} 11. Be3 {[%emt 0:09:22]} O-O {[%emt 0:01:47]} 12. Rc1 {[%emt 0:01:57]} Nbd7 {[%emt 0:06:02]} 13. h3 {[%emt 0:00:31] A30: Englische Eröffnung (Symmetrische Variante).} Rac8 {[%emt 0:01:02]} 14. f4 {[%emt 0:05:06]} Qb8 {[%emt 0:01:22]} 15. Qe2 {[%emt 0:01:27]} Rfe8 {[%emt 0:01:45]} 16. Nc2 $146 {[%emt 0:09:21]} ({Predecessor:} 16. Nb3 Bf8 17. g4 Qa8 18. Nd2 g6 19. Bf3 e5 20. f5 b5 21. fxg6 hxg6 22. g5 {1-0 Benidze,D (2514)-Yeke,S (2261) Kesan op 11th 2013 (3)}) 16... Bf8 {[%emt 0:03:55]} 17. Bf2 {[%emt 0:02:45]} g6 {[%emt 0:07:04]} 18. g4 {[%emt 0:05:15]} h6 {[%emt 0:06:52]} 19. Rcd1 {[%emt 0:04:18]} Qc7 {[%emt 0:02:21]} 20. Ne3 {[%emt 0:02:51]} Nc5 {[%emt 0:01:13]} 21. Nf1 {[%emt 0:03:24]} Ncd7 {[%emt 0:07:51]} 22. Nd2 {[%emt 0:01:35]} Bg7 {[%emt 0:02:28]} 23. Bf3 {[%emt 0:01:39]} Nh7 {[%emt 0:02:37]} 24. h4 {[%emt 0:02:04]} g5 {[%emt 0:00:18]} 25. e5 {[%emt 0:01:10]} Bxf3 {[%emt 0:02:44]} 26. Nxf3 {[%emt 0:00:21]} gxf4 {[%emt 0:00:11]} 27. Ne4 {[%emt 0:02:02]} Nxe5 {[%emt 0:03:44]} 28. Nxd6 {[%emt 0:00:08]} Nxg4 {[%emt 0:00:07]} 29. b4 {[%emt 0:02:25]} e5 {[%emt 0:16:02]} (29... Bc3 $19 30. c5 Nxf2 31. Qxf2 Bxe1 32. Rxe1 bxc5) 30. Qe4 {[%emt 0:05:35]} (30. c5 $17 {war nötig.} bxc5 31. Bxc5) 30... Nhf6 {[%emt 0:01:25]} 31. Qf5 {[%emt 0:00:21]} e4 {[%emt 0:06:10]} 32. Nxe4 {[%emt 0:01:19]} Nxe4 {[%emt 0:00:12]} (32... Qxc4 33. Nd6 Qc2 (33... Qxa2 $2 34. Rd2 $18) 34. Qxc2 Rxc2 35. Nxe8) 33. Rxe4 {[%emt 0:00:19]} Rxe4 {[%emt 0:00:14]} 34. Qxe4 {[%emt 0:01:24]} Nxf2 {[%emt 0:00:09]} (34... Qxc4 35. Rd8+ Bf8 36. Qxc4 Rxc4 37. Bxb6) 35. Kxf2 {[%emt 0:00:04]} Qxc4 {[%emt 0:00:16]} 36. Rd8+ {[%emt 0:01:25]} Bf8 $1 {[%emt 0:00:04]} 37. Qxc4 {[%emt 0:00:16]} Rxc4 {[%emt 0:00:10]} 38. Ne5 {[%emt 0:00:12]} Rc2+ $1 {[%emt 0:00:27]} (38... Rxb4 39. Nd7 $15) 39. Kf3 {[%emt 0:00:10]} Kg7 $1 {[%emt 0:00:10]} (39... Rxa2 40. Nd7 $11) 40. Rd7 {[%emt 0:01:00]} Kf6 {[%emt 0:00:38]} ({Keinesfalls} 40... Rxa2 41. Rxf7+ Kg8 42. Rb7 $11) 41. Ng4+ $2 {[%emt 0:00:06]} (41. Rxf7+ Kxe5 42. Rxf8) 41... Ke6 $19 {[%emt 0:00:24]} 42. Rb7 {[%emt 0:00:03]} Rc3+ {[%emt 0:04:23]} (42... Bxb4 43. Rxb6+ Bd6 44. Rxa6 $17) 43. Kxf4 {[%emt 0:02:45]} f5 {[%emt 0:01:43]} (43... Bxb4 $2 44. Nxh6 (44. Rxb6+ $2 {ist das falsche Schlagen.} Bd6+ 45. Rxd6+ Kxd6 $19) 44... Rc4+ 45. Kg3 $19) 44. Rxb6+ {[%emt 0:00:03]} Bd6+ {[%emt 0:00:11]} 45. Rxd6+ {[%emt 0:00:02]} Kxd6 {[%emt 0:00:23]} 46. Nxh6 {[%emt 0:00:04]} Rc4+ {[%emt 0:00:52]} 47. Kxf5 {[%emt 0:03:29]} Rxh4 {[%emt 0:01:23]} 48. Ng4 {[%emt 0:00:12]} Kd5 {[%emt 0:16:51]} 49. a4 {[%emt 0:02:00]} Rh3 {[%emt 0:00:00]} 50. Nf6+ {[%emt 0:00:49] [#]} Kc4 $1 {[%emt 0:00:00]} 51. b5 {[%emt 0:00:02]} a5 {[%emt 0:00:00]} ({Weniger gut wäre} 51... axb5 52. axb5 Rb3 53. Ke4 $15) 52. Nd7 {[%emt 0:10:39]} Ra3 {[%emt 0:00:00]} 53. Nb6+ {[%emt 0:00:00]} Kc5 {[%emt 0:00:00]} 54. Nd7+ {[%emt 0:00:00]} Kd6 {[%emt 0:00:00]} 55. Nb6 {[%emt 0:00:00] [#]} Kc7 $1 {[%emt 0:00:00]} 56. Nd5+ {[%emt 0:00:00]} Kb7 {[%emt 0:00:00]} 57. Ke4 {[%emt 0:00:00]} Rxa4+ {[%emt 0:00:00]} 58. Kd3 {[%emt 0:00:00]} Rh4 {[%emt 0:00:00]} 59. Kc3 {[%emt 0:00:00]} a4 {[%emt 0:00:00]} 60. Kb2 {[%emt 0:00:41]} Rd4 {[%emt 0:00:00]} 61. Ne3 {[%emt 0:01:52]} Rb4+ {[%emt 0:00:00]} 62. Ka2 {[%emt 0:00:07]} Rxb5 {[%emt 0:00:00]} 63. Nc4 {[%emt 0:00:43]} Rb4 {[%emt 0:00:00]} 64. Nb2 {[%emt 0:00:25]} Ka6 {[%emt 0:00:00]} 65. Nd3 {[%emt 0:00:54]} Rh4 {[%emt 0:00:00]} 66. Kb2 {[%emt 0:01:26]} Kb5 {[%emt 0:00:00]} 67. Ka2 {[%emt 0:00:09]} Rh2+ {[%emt 0:00:00]} 68. Kb1 {[%emt 0:00:50]} Kc4 {[%emt 0:00:00]} 69. Nc1 {[%emt 0:00:03]} Kc3 {[%emt 0:00:00]} 70. Na2+ {[%emt 0:00:21]} Kb3 {[%emt 0:00:00]} 71. Nc1+ {[%emt 0:00:03]} Ka3 {[%emt 0:00:00]} 72. Nd3 {[%emt 0:00:12]} Rh8 {[%emt 0:00:00]} 73. Nc1 {[%emt 0:02:57]} Rh2 {[%emt 0:00:56]} 74. Nd3 {[%emt 0:00:08]} Kb3 {[%emt 0:00:10]} 75. Nc1+ {[%emt 0:01:20]} Kc4 {[%emt 0:00:06]} 76. Na2 {[%emt 0:04:12]} a3 {[%emt 0:00:07]} 77. Nc1 {[%emt 0:00:04]} Rb2+ {[%emt 0:00:07]} 78. Ka1 {[%emt 0:00:03]} Kc3 {[%emt 0:00:24]} 79. Na2+ {[%emt 0:01:11]} Kc2 {[%emt 0:00:10]} 80. Nc3 {[%emt 0:00:02]} Rb8 {[%emt 0:00:15]} 81. Ne2 {[%emt 0:04:54]} Re8 {[%emt 0:00:34]} 82. Nd4+ {[%emt 0:00:02]} Kc3 {[%emt 0:00:14]} 83. Nb5+ {[%emt 0:00:02]} Kb4 {[%emt 0:00:15]} 84. Nd4 {[%emt 0:00:07]} Re4 {[%emt 0:00:49]} 85. Nc6+ {[%emt 0:00:02]} Kb5 {[%emt 0:00:21]} 86. Nd8 {[%emt 0:00:03]} Re7 {[%emt 0:00:16]} 87. Ka2 {[%emt 0:00:03]} Kb6 {[%emt 0:00:12]} 0-1

[Event "African Individual Chess-ch Open 2024"]
[Site "Accra"]
[Date "2024.03.20"]
[Round "9.4"]
[White "Silva, David"]
[Black "Abdulraheem Abdulrahman Akinto"]
[Result "1/2-1/2"]
[ECO "B22"]
[WhiteElo "2358"]
[BlackElo "2229"]
[Annotator "TA"]
[PlyCount "77"]
[EventDate "2024.03.13"]
[EventCountry "GHA"]
[SourceTitle "playchess.com"]
[Source "ChessBase"]
[SourceQuality "1"]
[TimeControl "5400+30"]

{[%evp 19,77,0,37,32,21,24,27,20,41,32,46,52,38,49,55,0,0,0,0,-17,-18,-60,-56,-75,-76,-77,-26,-36,-36,-31,-31,-37,-29,-20,-14,-21,-18,-37,-33,-50,0,0,0,0,0,0,0,0,0,0,0,0,0,0,0,0,0,0,0,0]} 1. e4 {[%emt 1:31:00]} c5 {[%emt 0:00:09]} 2. c3 {[%emt 0:00:00]} e6 {[%emt 0:00:11]} 3. Nf3 {[%emt 0:00:00]} d5 {[%emt 0:00:54]} 4. exd5 {[%emt 0:00:00]} Qxd5 {[%emt 0:00:17]} 5. d4 {[%emt 0:00:00]} Nf6 {[%emt 0:00:26]} 6. Be2 {[%emt 0:00:00]} Be7 {[%emt 0:01:52]} 7. O-O {[%emt 0:00:00]} O-O {[%emt 0:01:26]} 8. Be3 {[%emt 0:00:00]} cxd4 {[%emt 0:02:29]} 9. cxd4 {[%emt 0:00:00]} Nc6 {[%emt 0:00:28]} 10. Nc3 {[%emt 0:00:00]} Qa5 {[%emt 0:00:27]} 11. a3 {[%emt 0:00:00]} a6 {[%emt 0:01:07]} 12. Bd3 {[%emt 0:00:00]} Rd8 {[%emt 0:03:02]} 13. b4 {[%emt 0:00:00] Weiß hat minimalen Vorteil.} Qc7 {[%emt 0:02:10]} 14. Rc1 {[%emt 0:00:00]} Qb8 {[%emt 0:06:14]} 15. Na4 {[%emt 0:00:00]} Nd5 {[%emt 0:02:50] Gegen Nb6 gerichtet.} 16. Be4 {[%emt 0:00:00]} Bf6 {[%emt 0:13:14]} 17. Qd2 {[%emt 0:00:00]} (17. Bxd5 $14 exd5 18. Nb6) 17... Nce7 $11 {[%emt 0:03:11]} 18. Rfe1 {[%emt 0:00:00]} b6 {[%emt 0:01:40]} 19. Bg5 {[%emt 0:00:00]} Bb7 {[%emt 0:04:19]} 20. Bb1 {[%emt 0:00:00]} Bxg5 {[%emt 0:06:56]} 21. Qxg5 {[%emt 0:00:00]} h6 {[%emt 0:02:12]} 22. Qh4 {[%emt 0:00:00]} Qf4 {[%emt 0:07:07]} ({Besser ist} 22... Bc6 $17 23. Nc3 Qf4) 23. Qxf4 {[%emt 0:00:00]} Nxf4 {[%emt 0:00:22]} 24. Nxb6 {[%emt 0:00:00]} Bxf3 {[%emt 0:00:17]} 25. gxf3 {[%emt 0:00:00]} Rab8 {[%emt 0:02:58]} 26. Na4 {[%emt 0:00:00]} ({Aber nicht} 26. Re4 $2 Nh3+ 27. Kg2 Ng5 $19) 26... Rxd4 {[%emt 0:01:07]} 27. Nc5 {[%emt 0:00:00]} Rb6 {[%emt 0:07:43]} 28. Nb3 {[%emt 0:00:00]} Rd5 {[%emt 0:09:37]} 29. Rc7 {[%emt 0:00:00]} Rg5+ {[%emt 0:04:15]} (29... Neg6 $15) 30. Kf1 {[%emt 0:00:00] Die Stellung ist ausgeglichen.} Nf5 {[%emt 0:05:44]} 31. Nc5 {[%emt 0:00:00]} Rb8 {[%emt 0:04:22]} 32. Nxa6 {[%emt 0:10:56]} Rd8 {[%emt 0:00:42]} 33. Rec1 {[%emt 0:02:36] Droht stark Rc8.} Rd2 {[%emt 0:02:09]} 34. Bxf5 {[%emt 0:01:33]} exf5 {[%emt 0:01:03]} 35. R7c2 {[%emt 0:00:33]} Rd3 {[%emt 0:00:50]} 36. Rc3 {[%emt 0:00:56] [#] Und Rxd3 würde nun gewinnen.} Rd2 {[%emt 0:00:27]} 37. R3c2 {[%emt 0:00:12]} Rd3 {[%emt 0:01:34][%cal Og5g2]} 38. Rc3 {[%emt 0:00:27] Droht Rxd3 und aus.} Rd2 {[%emt 0:01:30] ( -> ...Rg2)} 39. R3c2 {[%emt 0:00:13] Gewichteter Fehlerwert: Weiß=0.06 (makellos) /Schwarz=0.07 (makellos) .  Fehler:       	Weiß=1     	Schwarz=2     Ungenau:       	Weiß=1     	---        OK:         	Weiß=4     	Schwarz=13    Bester:       	Weiß=4     	Schwarz=1} 1/2-1/2

[Event "African Individual Chess-ch Open 2024"]
[Site "Accra"]
[Date "2024.03.20"]
[Round "9.5"]
[White "Wanyama, Harold"]
[Black "Cogan, Nicolas"]
[Result "0-1"]
[ECO "E04"]
[WhiteElo "2226"]
[BlackElo "2070"]
[Annotator "RC"]
[PlyCount "54"]
[EventDate "2024.03.13"]
[EventCountry "GHA"]
[SourceTitle "playchess.com"]
[Source "ChessBase"]
[SourceQuality "1"]
[TimeControl "5400+30"]

1. d4 {[%emt 0:00:06]} Nf6 {[%emt 0:00:04]} 2. c4 {[%emt 0:00:06]} e6 {[%emt 0:00:04]} 3. Nf3 {[%emt 0:00:17]} d5 {[%emt 0:00:10]} 4. g3 {[%emt 0:00:37]} dxc4 {[%emt 0:00:28]} 5. Bg2 {[%emt 0:00:08]} Nc6 {[%emt 0:00:19]} 6. Qa4 {[%emt 0:00:12]} Bb4+ {[%emt 0:00:18]} 7. Bd2 {[%emt 0:00:08]} Nd5 {[%emt 0:00:28]} 8. Bxb4 {[%emt 0:00:16]} Ndxb4 {[%emt 0:00:09]} 9. O-O {[%emt 0:00:10]} Rb8 {[%emt 0:00:28]} 10. Na3 {[%emt 0:00:19]} O-O {[%emt 0:00:25]} 11. Qb5 {[%emt 0:00:14]} b6 {[%emt 0:00:44]} 12. Qxc4 {[%emt 0:00:09]} Ba6 {[%emt 0:00:16]} 13. Nb5 {[%emt 0:00:09]} Qd5 {[%emt 0:00:14]} 14. Qxd5 {[%emt 0:00:09]} Nxd5 {[%emt 0:00:11]} 15. a4 {[%emt 0:00:09]} Bb7 {[%emt 0:00:03]} 16. e4 {[%emt 0:10:55]} Nf6 {[%emt 0:14:42]} 17. Rfe1 {[%emt 0:01:09]} Nb4 {[%emt 0:04:12]} 18. e5 {[%emt 0:01:41]} Nfd5 {[%emt 0:00:50]} 19. Rec1 {[%emt 0:01:13]} Nd3 {[%emt 0:12:18]} 20. Rc2 {[%emt 0:00:18]} a6 {[%emt 0:02:09]} 21. Nc3 {[%emt 0:02:46]} N5b4 {[%emt 0:21:07]} 22. Rd2 {[%emt 0:12:34]} Bxf3 {[%emt 0:07:05]} 23. Bxf3 {[%emt 0:02:15]} Rfd8 {[%emt 0:02:45]} 24. Rad1 {[%emt 0:05:15]} Rxd4 {[%emt 0:03:15]} 25. Be2 {[%emt 0:06:35]} Rbd8 {[%emt 0:00:43]} 26. f4 {[%emt 0:00:26]} c5 {[%emt 0:03:37]} 27. Bf3 {[%emt 0:03:03]} Nxe5 {[%emt 0:05:19]} 0-1

[Event "African Individual Chess-ch Open 2024"]
[Site "Accra"]
[Date "2024.03.20"]
[Round "9.6"]
[White "Aikhoje, Odion"]
[Black "Ntamatungiro, Wilfried"]
[Result "1-0"]
[ECO "D02"]
[WhiteElo "2215"]
[BlackElo "1905"]
[Annotator "RC"]
[PlyCount "101"]
[EventDate "2024.03.13"]
[EventCountry "GHA"]
[SourceTitle "playchess.com"]
[Source "ChessBase"]
[SourceQuality "1"]
[TimeControl "5400+30"]

1. Nf3 {[%emt 0:00:33]} Nf6 {[%emt 0:00:28]} 2. d4 {[%emt 0:00:19]} d5 {[%emt 0:00:43]} 3. Bf4 {[%emt 0:00:33]} e6 {[%emt 0:00:34]} 4. e3 {[%emt 0:00:37]} Be7 {[%emt 0:00:30]} 5. Nbd2 {[%emt 0:01:41]} Nbd7 {[%emt 0:01:04]} 6. Bd3 {[%emt 0:00:39]} c5 {[%emt 0:01:59]} 7. c3 {[%emt 0:00:22]} Nh5 {[%emt 0:06:10]} 8. Be5 {[%emt 0:01:12]} Nxe5 {[%emt 0:01:11]} 9. Nxe5 {[%emt 0:00:12]} Nf6 {[%emt 0:04:48]} 10. f4 {[%emt 0:00:09]} c4 {[%emt 0:15:59]} 11. Bc2 {[%emt 0:01:34]} b5 {[%emt 0:00:10]} 12. a3 {[%emt 0:12:13]} Bb7 {[%emt 0:00:28]} 13. Qf3 {[%emt 0:00:15]} g6 {[%emt 0:03:12]} 14. g4 {[%emt 0:01:52]} Nd7 {[%emt 0:01:29]} 15. Nxd7 {[%emt 0:02:00]} Qxd7 {[%emt 0:01:11]} 16. g5 {[%emt 0:00:11]} h6 {[%emt 0:02:19]} 17. h4 {[%emt 0:00:16]} h5 {[%emt 0:00:36]} 18. Qg2 {[%emt 0:03:47]} a5 {[%emt 0:01:53]} 19. Nf3 {[%emt 0:00:26]} Bd6 {[%emt 0:00:16]} 20. O-O {[%emt 0:01:29]} O-O {[%emt 0:00:32]} 21. Ne5 {[%emt 0:00:28]} Bxe5 {[%emt 0:01:22]} 22. fxe5 {[%emt 0:00:14]} b4 {[%emt 0:04:58]} 23. axb4 {[%emt 0:02:34]} axb4 {[%emt 0:00:40]} 24. cxb4 {[%emt 0:00:08]} c3 {[%emt 0:03:49]} 25. bxc3 {[%emt 0:01:24]} Qc7 {[%emt 0:00:13]} 26. Qd2 {[%emt 0:01:08]} Rfc8 {[%emt 0:00:42]} 27. Rxa8 {[%emt 0:00:42]} Rxa8 {[%emt 0:01:34]} 28. Bd3 {[%emt 0:01:14]} Ra3 {[%emt 0:03:32]} 29. Rc1 {[%emt 0:02:15]} Bc8 {[%emt 0:00:23]} 30. Qb2 {[%emt 0:01:38]} Qa7 {[%emt 0:01:03]} 31. Bb1 {[%emt 0:00:52]} Bd7 {[%emt 0:01:26]} 32. b5 {[%emt 0:00:26]} Qa4 {[%emt 0:03:39]} 33. Bc2 {[%emt 0:02:38]} Ra2 {[%emt 0:01:44]} 34. Bxa4 {[%emt 0:04:29]} Rxb2 {[%emt 0:00:24]} 35. c4 {[%emt 0:00:12]} dxc4 {[%emt 0:01:06]} 36. Rxc4 {[%emt 0:00:56]} Bxb5 {[%emt 0:00:58]} 37. Rc8+ {[%emt 0:01:59]} Kg7 {[%emt 0:00:19]} 38. Rb8 {[%emt 0:00:18]} Rb1+ {[%emt 0:00:50]} 39. Kh2 {[%emt 0:00:53]} Bd3 {[%emt 0:00:23]} 40. Rxb1 {[%emt 0:00:09]} Bxb1 {[%emt 0:02:05]} 41. Kg3 {[%emt 0:01:02]} Be4 {[%emt 0:00:57]} 42. Kf2 {[%emt 0:00:12]} Kf8 {[%emt 0:00:43]} 43. Ke1 {[%emt 0:00:05]} Ke7 {[%emt 0:01:47]} 44. Kd2 {[%emt 0:00:33]} Bb7 {[%emt 0:01:48]} 45. Kc3 {[%emt 0:00:50]} Be4 {[%emt 0:01:54]} 46. Kb4 {[%emt 0:00:42]} Bd5 {[%emt 0:01:30]} 47. Kc5 {[%emt 0:00:41]} Bf3 {[%emt 0:02:09]} 48. Kb6 {[%emt 0:02:45]} Bd5 {[%emt 0:06:34]} 49. Bc6 {[%emt 0:03:29]} Bb3 {[%emt 0:01:49]} 50. Kc7 {[%emt 0:00:12]} Bd5 {[%emt 0:11:17]} 51. e4 {[%emt 0:05:43]} 1-0

[Event "African Individual Chess-ch Open 2024"]
[Site "Accra"]
[Date "2024.03.20"]
[Round "9.7"]
[White "Mhango, Banele"]
[Black "Paiva, Donaldo"]
[Result "1-0"]
[ECO "B94"]
[WhiteElo "2193"]
[BlackElo "2172"]
[Annotator "RC"]
[PlyCount "85"]
[EventDate "2024.03.13"]
[EventCountry "GHA"]
[SourceTitle "playchess.com"]
[Source "ChessBase"]
[SourceQuality "1"]
[TimeControl "5400+30"]

1. e4 {[%emt 0:00:38]} c5 {[%emt 0:12:27]} 2. Nf3 {[%emt 0:00:06]} d6 {[%emt 0:00:54]} 3. d4 {[%emt 0:00:26]} cxd4 {[%emt 0:00:09]} 4. Nxd4 {[%emt 0:00:18]} Nf6 {[%emt 0:00:07]} 5. Nc3 {[%emt 0:00:08]} a6 {[%emt 0:00:07]} 6. Bg5 {[%emt 0:00:28]} Nbd7 {[%emt 0:00:26]} 7. f4 {[%emt 0:00:21]} g6 {[%emt 0:02:06]} 8. Qe2 {[%emt 0:01:00]} Qa5 {[%emt 0:00:28]} 9. Nb3 {[%emt 0:03:44]} Qc7 {[%emt 0:02:49]} 10. O-O-O {[%emt 0:02:38]} Bg7 {[%emt 0:03:01]} 11. Re1 {[%emt 0:05:26]} e5 {[%emt 0:02:04]} 12. fxe5 {[%emt 0:08:01]} dxe5 {[%emt 0:00:09]} 13. Qc4 {[%emt 0:01:59]} Qxc4 {[%emt 0:10:21]} 14. Bxc4 {[%emt 0:00:03]} b5 {[%emt 0:00:09]} 15. Bd5 {[%emt 0:09:16]} Nxd5 {[%emt 0:00:35]} 16. Nxd5 {[%emt 0:00:04]} Ra7 {[%emt 0:00:32]} 17. Be3 {[%emt 0:04:01]} Rb7 {[%emt 0:00:33]} 18. Na5 {[%emt 0:02:18]} f5 {[%emt 0:06:01]} 19. Rhf1 {[%emt 0:03:47]} f4 {[%emt 0:00:48]} 20. Bf2 {[%emt 0:00:31]} g5 {[%emt 0:00:32]} 21. Rd1 {[%emt 0:04:47]} Nb8 {[%emt 0:14:26]} 22. Nxb7 {[%emt 0:00:47]} Bxb7 {[%emt 0:00:02]} 23. Ba7 {[%emt 0:01:23]} Nd7 {[%emt 0:00:30]} 24. Rd3 {[%emt 0:01:57]} Nf6 {[%emt 0:04:38]} 25. Nxf6+ {[%emt 0:06:19]} Bxf6 {[%emt 0:00:08]} 26. Rd6 {[%emt 0:00:41]} O-O {[%emt 0:01:02]} 27. Re1 {[%emt 0:00:33]} g4 {[%emt 0:00:08]} 28. Bf2 {[%emt 0:01:02]} Rf7 {[%emt 0:03:33]} 29. b3 {[%emt 0:04:16]} h5 {[%emt 0:00:21]} 30. c4 {[%emt 0:00:29]} bxc4 {[%emt 0:00:06]} 31. bxc4 {[%emt 0:00:02]} h4 {[%emt 0:00:24]} 32. c5 {[%emt 0:01:27]} g3 {[%emt 0:01:57]} 33. hxg3 {[%emt 0:00:41]} fxg3 {[%emt 0:00:09]} 34. Bg1 {[%emt 0:00:16]} Kg7 {[%emt 0:04:12]} 35. c6 {[%emt 0:02:47]} Rc7 {[%emt 0:00:48]} 36. Kd2 {[%emt 0:02:04]} Bc8 {[%emt 0:00:45]} 37. Bb6 {[%emt 0:00:19]} Rf7 {[%emt 0:00:38]} 38. Bd8 {[%emt 0:00:56]} Bxd8 {[%emt 0:01:26]} 39. Rxd8 {[%emt 0:00:26]} Bg4 {[%emt 0:00:12]} 40. Ke3 {[%emt 0:03:11]} h3 {[%emt 0:01:30]} 41. gxh3 {[%emt 0:01:00]} Bxh3 {[%emt 0:00:45]} 42. Rb8 {[%emt 0:04:41]} g2 {[%emt 0:00:52]} 43. Rb7 {[%emt 0:00:10]} 1-0

[Event "African Individual Chess-ch Open 2024"]
[Site "Accra"]
[Date "2024.03.20"]
[Round "9.8"]
[White "KIGIGHA, Bomo Lovet"]
[Black "Pereira, Sergio Murilo de Ara"]
[Result "0-1"]
[ECO "A13"]
[WhiteElo "2231"]
[BlackElo "2115"]
[Annotator "RC"]
[PlyCount "74"]
[EventDate "2024.03.13"]
[EventCountry "GHA"]
[SourceTitle "playchess.com"]
[Source "ChessBase"]
[SourceQuality "1"]
[TimeControl "5400+30"]

1. c4 {[%emt 0:00:07]} e6 {[%emt 0:01:27]} 2. Nf3 {[%emt 0:00:15]} Nf6 {[%emt 0:02:02]} 3. b3 {[%emt 0:00:14]} d5 {[%emt 0:06:45]} 4. Bb2 {[%emt 0:00:29]} c5 {[%emt 0:06:43]} 5. g3 {[%emt 0:00:09]} Nc6 {[%emt 0:00:47]} 6. cxd5 {[%emt 0:00:32]} exd5 {[%emt 0:01:10]} 7. Bg2 {[%emt 0:00:02]} d4 {[%emt 0:09:52]} 8. O-O {[%emt 0:00:41]} Bf5 {[%emt 0:00:34]} 9. e3 {[%emt 0:01:16]} Be7 {[%emt 0:08:48]} 10. exd4 {[%emt 0:11:37]} cxd4 {[%emt 0:01:22]} 11. Re1 {[%emt 0:00:34]} O-O {[%emt 0:00:47]} 12. Ne5 {[%emt 0:00:08]} Rc8 {[%emt 0:06:24]} 13. Nxc6 {[%emt 0:00:31]} bxc6 {[%emt 0:00:08]} 14. Na3 {[%emt 0:00:48]} Re8 {[%emt 0:08:15]} 15. Nc4 {[%emt 0:05:20]} Be6 {[%emt 0:03:35]} 16. Rc1 {[%emt 0:01:28]} c5 {[%emt 0:01:43]} 17. Qc2 {[%emt 0:10:33]} Bd5 {[%emt 0:06:03]} 18. Bh3 {[%emt 0:00:12]} g6 {[%emt 0:10:17]} 19. Qd3 {[%emt 0:01:22]} Rb8 {[%emt 0:02:53]} 20. Re5 {[%emt 0:01:33]} Bf8 {[%emt 0:04:33]} 21. Rce1 {[%emt 0:05:23]} Rxe5 {[%emt 0:00:47]} 22. Rxe5 {[%emt 0:00:03]} Bxc4 {[%emt 0:01:08]} 23. Qxc4 {[%emt 0:00:18]} Qa5 {[%emt 0:00:09]} 24. Qxd4 {[%emt 0:11:49]} Qxa2 {[%emt 0:05:15]} 25. Rxc5 {[%emt 0:08:02]} Qxb3 {[%emt 0:01:07]} 26. Bc3 {[%emt 0:06:22]} Qd1+ {[%emt 0:00:34]} 27. Kg2 {[%emt 0:13:09]} Rb1 {[%emt 0:00:40]} 28. Bd7 {[%emt 0:07:05]} Qf1+ {[%emt 0:02:18]} 29. Kf3 {[%emt 0:00:09]} Bxc5 {[%emt 0:06:21]} 30. Qxc5 {[%emt 0:00:53]} Qd3+ {[%emt 0:00:12]} 31. Kg2 {[%emt 0:00:40]} Qe4+ {[%emt 0:00:39]} 32. f3 {[%emt 0:01:47]} Qe2+ {[%emt 0:00:10]} 33. Kh3 {[%emt 0:00:05]} Nxd7 {[%emt 0:00:12]} 34. Qxa7 {[%emt 0:02:41]} Qe6+ {[%emt 0:00:46]} 35. Kg2 {[%emt 0:00:01]} Re1 {[%emt 0:00:24]} 36. Qd4 {[%emt 0:01:26]} f6 {[%emt 0:01:25]} 37. h4 {[%emt 0:00:19]} h5 {[%emt 0:00:33]} 0-1

[Event "African Individual Chess-ch Open 2024"]
[Site "Accra"]
[Date "2024.03.20"]
[Round "9.9"]
[White "Zhemba, Jemusse"]
[Black "Oluka Robert Mcligeyo"]
[Result "0-1"]
[ECO "C30"]
[WhiteElo "2226"]
[BlackElo "2041"]
[Annotator "RC"]
[PlyCount "47"]
[EventDate "2024.03.13"]
[EventCountry "GHA"]
[SourceTitle "playchess.com"]
[Source "ChessBase"]
[SourceQuality "1"]
[TimeControl "5400+30"]

1. e4 {[%emt 0:00:25]} e5 {[%emt 0:00:35]} 2. f4 {[%emt 1:31:05]} Bc5 {[%emt 0:04:02]} 3. Nf3 {[%emt 0:00:00]} d6 {[%emt 0:00:11]} 4. b4 {[%emt 0:00:00]} Bb6 {[%emt 0:05:36]} 5. fxe5 {[%emt 0:00:00]} dxe5 {[%emt 0:00:13]} 6. c4 {[%emt 0:00:00]} Bd4 {[%emt 0:00:25]} 7. Nc3 {[%emt 0:00:00]} Nf6 {[%emt 0:00:57]} 8. Qc2 {[%emt 0:00:00]} O-O {[%emt 0:00:23]} 9. Be2 {[%emt 0:00:00]} a5 {[%emt 0:05:17]} 10. b5 {[%emt 0:00:00]} c6 {[%emt 0:00:06]} 11. Ba3 {[%emt 0:00:00]} Re8 {[%emt 0:00:11]} 12. O-O-O {[%emt 0:00:00]} cxb5 {[%emt 0:00:19]} 13. Nxb5 {[%emt 0:00:00]} Nc6 {[%emt 0:01:05]} 14. Rhf1 {[%emt 0:00:00]} Nb4 {[%emt 0:01:36]} 15. Qa4 {[%emt 0:00:00]} Bd7 {[%emt 0:00:25]} 16. Nfxd4 {[%emt 0:00:00]} exd4 {[%emt 0:00:26]} 17. Bxb4 {[%emt 0:00:00]} axb4 {[%emt 0:00:17]} 18. Qxb4 {[%emt 0:00:00]} d3 {[%emt 0:02:58]} 19. Bxd3 {[%emt 0:00:00]} Bxb5 {[%emt 0:00:55]} 20. Bc2 {[%emt 0:00:00]} Bc6 {[%emt 0:00:38]} 21. d3 {[%emt 0:00:00]} Ra4 {[%emt 1:14:25]} 22. a3 Rxa3 {[%emt 0:00:00]} 23. Qc3 {[%emt 0:00:00]} Ra2 {[%emt 0:00:00]} 24. Ba4 {[%emt 0:00:00]} 0-1